[Event "1st Anfield Cup 2022"]
[Site "Kyiv"]
[Date "2022.09.24"]
[Round "2.6"]
[White "Popovkin, Petro"]
[Black "Samunenkov, Ihor"]
[Result "0-1"]
[ECO "B10"]
[WhiteElo "2156"]
[BlackElo "2469"]
[Annotator "TA"]
[PlyCount "158"]
[EventDate "2022.09.20"]
[EventType "swiss"]
[EventCountry "UKR"]
[SourceTitle "playchess.com"]
[Source "ChessBase"]
[SourceQuality "1"]
[TimeControl "900+10"]

{[%evp 10,158,27,25,27,18,34,34,20,26,24,13,5,0,22,0,0,8,0,0,0,0,0,0,0,0,0,0,0,0,0,0,0,0,0,0,0,5,5,-2,81,68,92,0,96,66,99,92,95,76,85,74,95,99,215,215,215,211,206,199,205,188,198,187,221,197,188,83,104,98,93,65,86,0,0,-362,-69,-69,-20,-42,-46,-26,-66,-39,0,0,0,0,0,-250,76,-192,-235,-1258,-1176,-1369,-813,-787,-314,-807,-771,-934,-779,-731,-635,-558,-260,-406,-386,-1509,-1213,-1972,-1671,-4206,-4206,-4206,-4206,-4206,-2965,-4206,-4206,-4206,-4206,-4198,-4198,-4198,-4198,-4198,-4198,-4198,-4198,-4198,-4198,-4196,-4178,-2043,-2182,-4196,-4155,-4155,-4155,-29963,-29963,-29945,-29959,-5730,-6235,-5431,-4141,-4556,-4458]} 1. e4 {[%emt 0:00:11]} c6 {[%emt 0:00:02]} 2. Nf3 {[%emt 0:00:08]} d5 {[%emt 0:00:03]} 3. Nc3 {[%emt 0:00:03]} dxe4 {[%emt 0:00:33]} 4. Nxe4 {[%emt 0:00:05]} Nf6 {[%emt 0:00:03]} 5. Qe2 {[%emt 0:01:07]} Nxe4 {[%emt 0:00:31]} 6. Qxe4 {[%emt 0:00:04]} Nd7 {[%emt 0:00:40] B11: Caro-Kann: Two Knights Variation.} 7. Bc4 {[%emt 0:01:20]} Nf6 {[%emt 0:00:03] [#]} 8. Ne5 $1 {[%emt 0:00:15][%csl Ge5][%cal Rc4f7]} e6 {[%emt 0:00:02] White is slightly better.} 9. Qe2 {[%emt 0:00:09]} b5 {[%emt 0:00:06]} 10. Bb3 {[%emt 0:01:48]} (10. Nxc6 Qc7 11. Bd3 (11. Bxb5 a6 $17) 11... a6 $15) 10... Qc7 {[%emt 0:00:04]} 11. d4 {[%emt 0:00:28]} Bd6 {[%emt 0:01:58]} 12. Bf4 {[%emt 0:00:36]} O-O {[%emt 0:00:48]} 13. O-O {[%emt 0:00:42]} a5 {[%emt 0:00:42]} 14. a3 {[%emt 0:01:06] [#]} Ba6 $146 {[%emt 0:00:52]} ({Predecessor:} 14... c5 15. dxc5 Qxc5 16. Rfd1 Bc7 17. a4 b4 18. Nd3 Qe7 19. Bxc7 Qxc7 20. Qe5 Qb6 {½-½ (47) Salinas Herrera,P (2514)-Keymer,V (2568) Chess.com INT 2020}) 15. Rfe1 {[%emt 0:00:14]} a4 {[%emt 0:04:02]} 16. Ba2 {[%emt 0:00:22]} b4 {[%emt 0:00:03]} 17. Qf3 {[%emt 0:00:17]} bxa3 {[%emt 0:00:22]} 18. bxa3 {[%emt 0:00:03]} Bb7 {[%emt 0:00:55]} 19. Rab1 {[%emt 0:03:51]} Rab8 {[%emt 0:00:32]} 20. Nd3 {[%emt 0:01:32]} Bxf4 {[%emt 0:01:14]} 21. Qxf4 {[%emt 0:00:14]} Qxf4 {[%emt 0:00:15]} 22. Nxf4 {[%emt 0:00:02]} Ba6 {[%emt 0:00:11] Prevents Bc4.} 23. c4 {[%emt 0:01:43] Against Nd5} Rfd8 {[%emt 0:02:34]} 24. Nd3 {[%emt 0:00:39]} Nd7 {[%emt 0:00:58]} (24... Rxb1 $11 {remains equal.} 25. Rxb1 Nd5) 25. f3 {[%emt 0:01:44]} g5 {[%emt 0:00:54] [#]} 26. Kf2 {[%emt 0:00:13]} (26. Rxb8 $1 $16 Rxb8 27. Nb4) 26... Kg7 {[%emt 0:00:02]} (26... Nb6 $1 $11) 27. Ke3 {[%emt 0:00:08]} h6 {[%emt 0:00:37]} 28. Rb4 {[%emt 0:00:26]} Rxb4 {[%emt 0:00:14]} 29. Nxb4 {[%emt 0:00:02]} Bb7 {[%emt 0:00:02]} 30. Nd3 {[%emt 0:00:01] Prevents c5.} Ba6 {[%emt 0:00:24]} 31. Rb1 {[%emt 0:00:06]} Rb8 {[%emt 0:00:06]} (31... e5 $16 {might work better.}) 32. Rxb8 $18 {[%emt 0:00:04]} Nxb8 {[%emt 0:00:01][%mdl 4096] Endgame KBN-KBN} 33. Nc5 {[%emt 0:00:02] Prevents Nd7.} Kf6 {[%emt 0:00:14]} 34. f4 {[%emt 0:00:18]} ({But not} 34. Nxa4 Nd7 35. c5 Ke7) 34... Ke7 {[%emt 0:00:20]} 35. Nxa4 {[%emt 0:00:07]} Nd7 {[%emt 0:00:04]} 36. g3 {[%emt 0:00:27]} f5 {[%emt 0:00:23]} 37. Nb2 {[%emt 0:00:13]} Nf6 {[%emt 0:00:06]} 38. h3 {[%emt 0:00:04] Prevents Ng4+.} (38. h4 $18 {is more deadly.}) 38... Ne4 {[%emt 0:00:16]} 39. fxg5 {[%emt 0:00:07]} hxg5 {[%emt 0:00:07]} 40. h4 {[%emt 0:00:13]} Kf6 {[%emt 0:00:13]} 41. Kf3 {[%emt 0:00:25]} ({White should play} 41. hxg5+ $16 Kxg5 42. Nd3) 41... g4+ {[%emt 0:00:10]} 42. Kf4 $2 {[%emt 0:00:05][%mdl 8192]} (42. Kg2 $11 {and White has nothing to worry.}) 42... Nc3 $2 {[%emt 0:00:01]} (42... c5 $19 43. dxc5 (43. Bb1 $2 {is a self mate.} cxd4 44. Nd3 Nc3 45. h5 Ne2#) 43... e5+ 44. Ke3 Nxg3) 43. Bb3 $15 {[%emt 0:00:07]} Ne2+ {[%emt 0:00:01]} (43... c5 $5 44. dxc5 Ne2+ 45. Ke3 Nxg3 $15) 44. Ke3 {[%emt 0:00:01]} Nxg3 {[%emt 0:00:03][%cal Oc6c5] Strongly threatening ...c5!} 45. Nd3 {[%emt 0:00:04]} Nf1+ {[%emt 0:00:11]} 46. Ke2 $1 {[%emt 0:00:06]} Ng3+ {[%emt 0:00:07]} (46... Nh2 $5 {[%cal Rh2f3]}) 47. Ke3 {[%emt 0:00:43]} Ne4 {[%emt 0:00:12] ...g3 is the strong threat.} 48. Ne5 {[%emt 0:00:12][%cal Oe5g4] aiming for Nxg4+!} g3 {[%emt 0:00:13] White must now prevent ...c5.} 49. Nf3 $2 {[%emt 0:00:10]} (49. c5 $1 $11) 49... g2 $2 {[%emt 0:00:18] [#]} ({Better is} 49... c5 $19 50. Bc2 cxd4+ 51. Nxd4 e5) 50. a4 $2 {[%emt 0:00:06][%mdl 8192]} (50. c5 $1 $16 {keeps the pressure on.}) 50... c5 $19 {[%emt 0:00:09]} 51. Bc2 $2 {[%emt 0:00:16]} (51. d5) 51... cxd4+ {[%emt 0:00:08]} 52. Kxd4 {[%emt 0:00:01] [#]} Nd2 $1 {[%emt 0:00:27][%mdl 512]} 53. Ng1 {[%emt 0:00:04]} e5+ $2 {[%emt 0:00:09]} (53... f4 54. Be4 e5+ 55. Kd3 Nxe4 56. Kxe4 Bb7+ 57. Kd3 e4+ 58. Ke2 Kg6) 54. Kc3 $2 {[%emt 0:00:05]} (54. Ke3 Nxc4+ 55. Kf2) 54... Nf1 {[%emt 0:00:12] Hoping for ...Bb7.} 55. c5 {[%emt 0:00:27]} e4 {[%emt 0:00:03][%cal Be5e4,Be4e3][%mdl 32]} 56. Kd4 {[%emt 0:00:03]} Nd2 {[%emt 0:00:14]} 57. Ke3 {[%emt 0:00:05] Prevents Nf3.} Nc4+ {[%emt 0:00:11]} (57... Nf3 $142 58. Kf2 Nxh4) 58. Kf2 {[%emt 0:00:08]} (58. Kf4 {was the only defense.}) 58... Bb7 {[%emt 0:00:05] Threatens to win with ...f4.} 59. Bb3 $2 {[%emt 0:00:06]} (59. Ne2 e3+ 60. Kg1) 59... e3+ {[%emt 0:00:06]} 60. Ke2 {[%emt 0:00:08]} Nd2 {[%emt 0:00:01]} 61. Bc2 {[%emt 0:00:23] [#]} Nf3 $1 {[%emt 0:00:07][%mdl 512]} 62. Nh3 {[%emt 0:00:16]} Nd4+ {[%emt 0:00:17]} 63. Kxe3 {[%emt 0:00:03]} Nxc2+ {[%emt 0:00:02]} 64. Kf2 {[%emt 0:00:01]} Nd4 {[%emt 0:00:25]} 65. Nf4 {[%emt 0:00:10]} Nb3 {[%emt 0:00:13]} 66. Nxg2 {[%emt 0:00:11]} Nxc5 {[%emt 0:00:08]} 67. a5 {[%emt 0:00:13]} Nb3 {[%emt 0:00:11]} 68. Nf4 {[%emt 0:00:06]} Nxa5 {[%emt 0:00:04]} 69. Ke3 {[%emt 0:00:05]} Nc6 {[%emt 0:00:23]} 70. Nd5+ {[%emt 0:00:13]} Ke5 {[%emt 0:00:07]} 71. Nf4 {[%emt 0:00:02]} Ne7 {[%emt 0:00:06] ( -> ...Nd5+)} 72. Nd3+ {[%emt 0:00:03]} Kf6 {[%emt 0:00:02] And now ...Be4 would win.} 73. Kf4 {[%emt 0:00:45]} Ng6+ {[%emt 0:00:06]} 74. Kg3 {[%emt 0:00:02]} Be4 {[%emt 0:00:12]} 75. Nf2 {[%emt 0:00:01]} f4+ {[%emt 0:00:08]} 76. Kg4 {[%emt 0:00:03]} Bf5+ {[%emt 0:00:17]} 77. Kf3 {[%emt 0:00:23]} Ke5 {[%emt 0:00:01] Black is clearly winning.} 78. h5 {[%emt 0:00:05]} Nh4+ {[%emt 0:00:06]} 79. Ke2 {[%emt 0:00:02]} Kf6 {[%emt 0:00:04] Black used his chance.  Weighted Error Value: White=0.93/Black=0.58} 0-1

[Event "1st Anfield Cup 2022"]
[Site "Kyiv"]
[Date "2022.09.24"]
[Round "3.1"]
[White "Shishkin, Vadim"]
[Black "Vysochin, Spartak"]
[Result "1/2-1/2"]
[ECO "D10"]
[WhiteElo "2417"]
[BlackElo "2512"]
[Annotator "TA"]
[PlyCount "35"]
[EventDate "2022.09.20"]
[EventType "swiss"]
[EventCountry "UKR"]
[SourceTitle "playchess.com"]
[Source "ChessBase"]
[SourceQuality "1"]
[TimeControl "900+10"]

{[%evp 15,16,14,4]} 1. d4 {[%emt 0:00:01]} d5 {[%emt 0:00:03]} 2. c4 {[%emt 0:00:02]} c6 {[%emt 0:00:02]} 3. cxd5 {[%emt 0:00:01]} cxd5 {[%emt 0:00:01]} 4. Nc3 {[%emt 0:00:03]} Nf6 {[%emt 0:00:01]} 5. Bf4 {[%emt 0:00:04]} Nc6 {[%emt 0:00:03]} 6. e3 {[%emt 0:00:05]} a6 {[%emt 0:00:04]} 7. Nf3 {[%emt 0:00:03]} Bg4 {[%emt 0:00:04]} 8. Be2 {[%emt 0:00:04]} e6 {[#] 8...Bxf3 might become the main line.} {Predecessor:} 9. O-O $146 {D13: Slav Defence: Exchange variation without ...Bf5.} Bd6 10. Bg5 h6 11. Bh4 g5 12. Bg3 Bxg3 13. hxg3 Kf8 14. Ne5 Bxe2 15. Qxe2 Ne7 16. f4 g4 17. Nxg4 Nxg4 18. Qxg4 {0-1 (26) Narayanan,S (2559)-Jobava,B (2588) Chess.com INT 2022} 1/2-1/2

[Event "1st Anfield Cup 2022"]
[Site "Kyiv"]
[Date "2022.09.24"]
[Round "3.2"]
[White "Malakhatko, Vadim"]
[Black "Skliarov, Viktor"]
[Result "1/2-1/2"]
[ECO "E18"]
[WhiteElo "2448"]
[BlackElo "2384"]
[Annotator "TA"]
[PlyCount "45"]
[EventDate "2022.09.20"]
[EventType "swiss"]
[EventCountry "UKR"]
[SourceTitle "playchess.com"]
[Source "ChessBase"]
[SourceQuality "1"]
[TimeControl "900+10"]

{[%evp 22,45,8,0,16,4,19,6,25,14,35,28,39,8,10,0,0,0,8,10,10,9,7,0,0,-31]} 1. d4 {[%emt 0:00:03]} Nf6 {[%emt 0:00:02]} 2. c4 {[%emt 0:00:02]} e6 {[%emt 0:00:03]} 3. Nf3 {[%emt 0:00:02]} b6 {[%emt 0:00:04]} 4. g3 {[%emt 0:00:03]} Bb7 {[%emt 0:00:03]} 5. Bg2 {[%emt 0:00:04]} Be7 {[%emt 0:00:03]} 6. O-O {[%emt 0:00:03]} O-O {[%emt 0:00:03]} 7. Nc3 {[%emt 0:00:03]} Ne4 {[%emt 0:00:02]} 8. Bd2 {[%emt 0:00:01]} d5 {[%emt 0:00:37]} 9. cxd5 {[%emt 0:00:21]} exd5 {[%emt 0:00:04]} 10. Rc1 {[%emt 0:00:04][%cal Ba1c1,Bc1c3,Bc3c2][%mdl 32]} Nxc3 {[%emt 0:00:44]} 11. Rxc3 {[%emt 0:02:41]} Nd7 {[%emt 0:01:31]} 12. Bf4 {[%emt 0:00:08]} c6 {[%emt 0:00:09] [#] E18: Queen's Indian: Old Main Line (4 g3 Bb7 5 Bg2 Be7 6 0-0 0-0 7 Nc3).} 13. Rc2 $146 {[%emt 0:00:14]} ({Predecessor:} 13. Qc2 Re8 14. Ne5 Nxe5 15. Bxe5 Bb4 16. Rb3 Bf8 17. Bf4 Qd7 18. Rd1 Rad8 19. a3 Qg4 20. Bf3 {1-0 (75) Sahovic,D (2520)-Lein,A (2535) Lone Pine 1979}) 13... Re8 {[%emt 0:00:39]} 14. Qd3 {[%emt 0:00:15]} Bf6 {[%emt 0:00:40]} 15. Rfc1 {[%emt 0:00:07]} h6 {[%emt 0:01:20]} 16. h4 {[%emt 0:00:19]} Qe7 {[%emt 0:00:20]} 17. Nh2 {[%emt 0:03:43]} c5 {[%emt 0:01:47] The position is equal.} 18. dxc5 {[%emt 0:00:12]} Nxc5 {[%emt 0:00:02]} 19. Qd1 {[%emt 0:00:05] With the idea b4.} d4 {[%emt 0:00:14] And now ...Bxg2 would win.} 20. Bxb7 {[%emt 0:00:15]} Qxb7 {[%emt 0:00:20]} 21. Ng4 {[%emt 0:00:37]} Qe7 {[%emt 0:00:26]} 22. b4 {[%emt 0:01:31]} Ne6 {[%emt 0:02:07]} 23. Bd2 {[%emt 0:00:22] Weighted Error Value: White=0.07 (flawless) /Black=0.08 (flawless)} 1/2-1/2

[Event "1st Anfield Cup 2022"]
[Site "Kyiv"]
[Date "2022.09.24"]
[Round "3.3"]
[White "Maliutin, Oleksandr"]
[Black "Grinev, Valeriy"]
[Result "1/2-1/2"]
[ECO "A30"]
[WhiteElo "2232"]
[BlackElo "2425"]
[Annotator "TA"]
[PlyCount "91"]
[EventDate "2022.09.20"]
[EventType "swiss"]
[EventCountry "UKR"]
[SourceTitle "playchess.com"]
[Source "ChessBase"]
[SourceQuality "1"]
[TimeControl "900+10"]

{[%evp 25,91,-7,0,0,0,0,0,0,0,0,0,0,0,0,0,0,3,3,4,10,72,75,72,64,74,74,82,75,91,86,87,95,92,84,84,84,84,84,84,84,84,84,84,57,57,57,57,57,57,57,57,57,57,57,57,57,57,57,57,57,57,0,0,0,0,0,0,0]} 1. c4 {[%emt 0:00:02]} c5 {[%emt 0:00:02]} 2. Nf3 {[%emt 0:00:05]} Nc6 {[%emt 0:00:02]} 3. e3 {[%emt 0:00:09]} Nf6 {[%emt 0:00:05]} 4. d4 {[%emt 0:00:04]} cxd4 {[%emt 0:00:03]} 5. exd4 {[%emt 0:00:02]} d5 {[%emt 0:00:02]} 6. Nc3 {[%emt 0:00:06]} Bg4 {[%emt 0:00:04]} 7. cxd5 {[%emt 0:01:21]} Nxd5 {[%emt 0:00:03]} 8. Be2 {[%emt 0:00:56]} e6 {[%emt 0:00:05]} 9. Qb3 {[%emt 0:00:51]} Nb6 {[%emt 0:00:44]} 10. Be3 {[%emt 0:00:17]} Be7 {[%emt 0:00:25]} 11. Rd1 {[%emt 0:00:15]} O-O {[%emt 0:00:25]} 12. O-O {[%emt 0:00:05]} Nb4 {[%emt 0:00:08]} 13. h3 {[%emt 0:04:59]} Bh5 {[%emt 0:00:04]} 14. d5 {[%emt 0:00:27] B13: Caro-Kann: Exchange Variation and Panov-Botvinnik Attack.} N4xd5 {[%emt 0:00:33]} 15. Bxb6 {[%emt 0:00:04]} Qxb6 {[%emt 0:00:17]} 16. Nxd5 {[%emt 0:00:11]} exd5 {[%emt 0:00:03]} 17. Rxd5 {[%emt 0:00:14]} Qxb3 {[%emt 0:00:17]} 18. axb3 {[%emt 0:00:02]} Bg6 {[%emt 0:00:23]} 19. Rd7 {[%emt 0:00:18][%csl LRb7,LRe7]} Bf6 {[%emt 0:00:03]} 20. Rxb7 {[%emt 0:00:28] [#]} Bxb2 $146 {[%emt 0:00:06] A strong pair of Bishops.} ({Predecessor:} 20... Rfb8 21. Rxb8+ Rxb8 22. Bc4 Bxb2 23. Rd1 h6 24. Rd7 a5 25. Nh4 Kh7 26. f4 Bf6 27. Nxg6 fxg6 28. Kf2 Rd8 29. Rb7 Rd4 {½-½ (29) Villarreal,P-Aracri,M St Rosa 1983}) 21. Bc4 {[%emt 0:00:16]} a5 {[%emt 0:00:49]} 22. Re1 {[%emt 0:00:42]} a4 {[%emt 0:08:01]} (22... Rfb8 $11 {keeps the balance.} 23. Rxb8+ Rxb8) 23. bxa4 $16 {[%emt 0:00:06] White is much more active.} Rxa4 {[%emt 0:00:02]} 24. Bxf7+ {[%emt 0:02:20]} ({Don't play} 24. Rxb2 Rxc4 25. Re7 h6 $11) 24... Bxf7 {[%emt 0:00:38]} 25. Rxb2 {[%emt 0:00:03]} Ra7 {[%emt 0:00:08]} 26. Ne5 {[%emt 0:00:29]} Bd5 {[%emt 0:00:18]} 27. Rd2 {[%emt 0:00:31]} Ba8 {[%emt 0:00:07]} 28. Nd7 {[%emt 0:00:37]} Rc8 {[%emt 0:00:18]} 29. Re7 {[%emt 0:00:19][%cal Od7f6] And now Nf6+! would win.} Rac7 {[%emt 0:00:34] [#]} 30. Nf6+ $1 {[%emt 0:00:30]} gxf6 {[%emt 0:00:02]} 31. Rxc7 {[%emt 0:00:01][%mdl 64] Overworked Piece} Rxc7 {[%emt 0:00:01][%mdl 4096] Endgame KRB-KR} 32. Rd8+ {[%emt 0:00:01]} Kg7 {[%emt 0:00:02] aiming for ...Bc6.} 33. Rxa8 {[%emt 0:00:02] KR-KR} Rc2 {[%emt 0:00:04]} 34. g4 {[%emt 0:00:10]} h5 {[%emt 0:00:20]} 35. gxh5 {[%emt 0:00:42]} Rc5 {[%emt 0:00:02] Inhibits Ra5.} 36. Ra7+ {[%emt 0:00:01]} Kh6 {[%emt 0:00:02]} 37. Rf7 {[%emt 0:00:34]} Rc6 {[%emt 0:00:18]} 38. Kg2 {[%emt 0:00:13]} Kxh5 {[%emt 0:00:02]} 39. Rg7 {[%emt 0:00:01]} Kh6 {[%emt 0:00:06]} 40. Rg8 {[%emt 0:00:07]} Rc3 {[%emt 0:00:04]} 41. f3 {[%emt 0:00:09]} Rc4 {[%emt 0:00:06]} 42. Kg3 {[%emt 0:00:04]} Ra4 {[%emt 0:00:03]} 43. f4 {[%emt 0:00:13]} (43. h4 $14) 43... Kh7 {[%emt 0:00:14] The position is equal.} 44. Rg4 {[%emt 0:00:20]} Ra3+ {[%emt 0:00:04]} 45. Kh4 {[%emt 0:00:39]} Rf3 {[%emt 0:00:11]} 46. Rg1 {Weighted Error Value: White=0.03 (flawless) /Black=0.05 (flawless)} 1/2-1/2

[Event "1st Anfield Cup 2022"]
[Site "Kyiv"]
[Date "2022.09.24"]
[Round "3.4"]
[White "Samunenkov, Ihor"]
[Black "Sydoryka, Vladyslav"]
[Result "1-0"]
[ECO "C10"]
[WhiteElo "2469"]
[BlackElo "2278"]
[Annotator "TA"]
[PlyCount "135"]
[EventDate "2022.09.20"]
[EventType "swiss"]
[EventCountry "UKR"]
[SourceTitle "playchess.com"]
[Source "ChessBase"]
[SourceQuality "1"]
[TimeControl "900+10"]

{[%evp 24,135,48,50,47,47,53,54,64,45,52,32,45,36,35,33,63,23,44,31,32,0,112,43,34,33,36,0,0,0,0,-49,-37,-72,-68,-115,-113,-114,-111,-114,-104,-102,-61,-62,-41,-105,-75,-99,-42,-82,0,0,0,-16,-4,-95,0,-61,0,-102,0,0,0,0,0,0,0,-12,0,-76,0,0,694,-6,-6,-6,-6,-6,28,28,28,29,61,59,59,59,62,58,58,57,57,41,42,39,38,14,30,14,14,8,68,68,68,68,372,372,6460,6438,6438,6087,6087,5876,29984,29978]} 1. e4 {[%emt 0:00:46]} e6 {[%emt 0:00:24]} 2. d4 {[%emt 0:00:24]} d5 {[%emt 0:00:01]} 3. Nd2 {[%emt 0:00:23]} dxe4 {[%emt 0:00:02]} 4. Nxe4 {[%emt 0:00:02]} Bd7 {[%emt 0:00:00]} 5. Nf3 {[%emt 0:00:42]} Bc6 {[%emt 0:00:02]} 6. Bd3 {[%emt 0:00:02]} Nd7 {[%emt 0:00:01]} 7. O-O {[%emt 0:00:29]} Ngf6 {[%emt 0:00:03]} 8. Ng3 {[%emt 0:00:03]} Bxf3 {[%emt 0:00:52]} 9. Qxf3 {[%emt 0:00:03]} c6 {[%emt 0:00:01]} 10. c4 {[%emt 0:00:39]} Be7 {[%emt 0:00:06]} 11. b3 {[%emt 0:00:07]} O-O {[%emt 0:00:37]} 12. Bb2 {[%emt 0:00:01]} a5 {[%emt 0:00:07]} 13. a3 {[%emt 0:00:17]} Qc7 {[%emt 0:02:03] C10: French with 3 Nc3: Unusual Black 3rd moves and 3...dxe4.} 14. Rfe1 {[%emt 0:00:25]} Rfe8 {[%emt 0:00:04]} 15. Rad1 {[%emt 0:01:47]} Bd6 {[%emt 0:01:33] [#] White is slightly better.} 16. Kh1 $146 {[%emt 0:01:59]} ({Predecessor:} 16. Bb1 b5 17. Ne4 Bxh2+ 18. Kh1 Bd6 19. cxb5 cxb5 20. Rc1 Qb8 21. d5 Nxd5 22. Ng5 {1-0 (31) Ortiz Suarez,I (2603)-Tapia,D (2292) Bogota 2012}) 16... Rad8 {[%emt 0:02:47]} 17. Re2 {[%emt 0:01:08]} c5 {[%emt 0:02:49]} 18. dxc5 $1 {[%emt 0:01:00]} Nxc5 {[%emt 0:01:12]} 19. Bc2 {[%emt 0:02:42]} Ncd7 {[%emt 0:03:19]} 20. Ne4 {[%emt 0:01:39] White has more active pieces.} Be7 {[%emt 0:00:25][%cal Oa5a4]} 21. Red2 {[%emt 0:00:50]} Nxe4 {[%emt 0:00:58]} 22. Bxe4 {[%emt 0:01:49] This bishop pair is nice.} Nc5 {[%emt 0:01:12] [#]} (22... Bg5 $11 23. Rd6 (23. Bxh7+ Kxh7 24. Qh5+ Bh6 $11) 23... Nc5 24. Rxd8 (24. Qc3 $2 Bf6 $19) 24... Rxd8 25. Rxd8+ Bxd8) 23. Bc2 {[%emt 0:01:09]} (23. Bxh7+ $1 $16 {[%mdl 512]} Kxh7 24. Qxf7) 23... Rxd2 $14 {[%emt 0:00:09]} 24. Rxd2 {[%emt 0:00:01][%cal Oc2h7]} Rd8 {[%emt 0:00:11]} 25. Re2 {[%emt 0:00:29]} Nd7 {[%emt 0:00:11]} 26. Qh3 {[%emt 0:00:22]} (26. Bxh7+ $2 Kxh7 27. Qxf7 Nf6 $19) 26... h6 {[%emt 0:00:08]} 27. Qf3 {[%emt 0:00:08]} (27. Rxe6 $11 {might be stronger.} Bf6 28. Bxf6 (28. Rxf6 Nxf6 29. Qf5 Qd7 $17) 28... Nxf6 29. Re2 (29. Rxf6 $2 Qe5 $19)) 27... Bf6 {[%emt 0:00:04]} 28. Bc1 {[%emt 0:00:06]} a4 {[%emt 0:00:12]} 29. Qe4 {[%emt 0:00:13]} (29. g3 $15) 29... axb3 $17 {[%emt 0:00:14]} 30. Qh7+ Kf8 31. Bxb3 {[%emt 0:00:15]} Nc5 {[%emt 0:00:18]} 32. Bc2 {[%emt 0:00:06]} Qc6 {[%emt 0:00:14]} 33. Be3 {[%emt 0:00:15]} b6 {[%emt 0:00:05]} 34. Re1 {[%emt 0:00:04]} (34. Rd2 $15 Rxd2 35. Bxd2) 34... Ke7 {[%emt 0:00:11]} 35. h3 {[%emt 0:00:13][%cal Oa3a4]} Ra8 {[%emt 0:00:09]} (35... Qa8 $17 36. Bd1 Qxa3) 36. Rd1 {[%emt 0:00:09]} Rd8 {[%emt 0:00:13]} (36... Rxa3 $17 37. Kg1 Qc7) 37. Rxd8 $11 Kxd8 {[%emt 0:00:00]} 38. Qh8+ {[%emt 0:00:28]} Ke7 {[%emt 0:00:21]} 39. Qb8 {[%emt 0:00:05]} (39. Kg1 $11) 39... Bg5 {[%emt 0:00:10]} (39... Nd7 $17 40. Qf4 Bg5) 40. Bd4 {[%emt 0:00:16]} (40. Qa7+ $11 Kf8 41. f4 (41. Qb8+ Ke7 $11)) 40... Bf6 {[%emt 0:00:03]} (40... Nd7 $15 41. Qg3 Qxc4) 41. Be3 {[%emt 0:00:01]} (41. Qa7+ $11 {keeps the balance.} Kf8 42. Qb8+ Ke7 43. Bxc5+ bxc5 44. Qa7+ Kf8 45. Qb8+ Ke7 46. Qa7+ Kf8 47. a4) 41... Bg5 {[%emt 0:00:00]} (41... Nd7 $17 42. Qf4 Bg5) 42. f4 {[%emt 0:00:06]} Bf6 {[%emt 0:00:06]} 43. Qa7+ {[%emt 0:00:02]} Kf8 $1 {[%emt 0:00:15]} 44. a4 {[%emt 0:00:19] aiming for a5.} Bc3 {[%emt 0:00:11] Prevents a5.} 45. Qb8+ {[%emt 0:00:24]} Ke7 {[%emt 0:00:03] White must now prevent ...Nd7.} 46. Qa7+ {[%emt 0:00:09] [#]} (46. f5 $11 {remains equal.}) 46... Kf8 {[%emt 0:00:18]} (46... Nd7 $1 $17 47. f5 Bb4) 47. Bd1 {[%emt 0:00:01]} Qe4 $2 {[%emt 0:00:21][%mdl 8192] [#]} (47... Qd6 $11 48. Bf3 Nd7) 48. Bxc5+ $2 {[%emt 0:00:17]} (48. Qxb6 $1 $18 {[%cal Rb6d8]} Kg8 49. Qxc5) 48... bxc5 {[%emt 0:00:07]} 49. Qxc5+ $18 {[%emt 0:00:08][%mdl 4096] Endgame KQB-KQB} Kg8 {[%emt 0:00:07]} 50. Qf2 {[%emt 0:00:14]} Bd4 {[%emt 0:00:18]} 51. Bc2 {[%emt 0:00:10]} Bxf2 {[%emt 0:00:11]} 52. Bxe4 $11 {[%emt 0:00:01] KB-KB} Bg3 {[%emt 0:00:10]} 53. f5 {[%emt 0:00:15]} exf5 {[%emt 0:00:03]} 54. Bxf5 {[%emt 0:00:02]} g6 {[%emt 0:00:03]} 55. Be4 {[%emt 0:00:08]} f5 {[%emt 0:00:25]} 56. Bf3 {[%emt 0:00:22]} Kf7 {[%emt 0:00:05]} 57. c5 {[%emt 0:00:11]} Bf2 {[%emt 0:00:07]} 58. c6 {[%emt 0:00:02]} Bb6 {[%emt 0:00:03]} 59. g3 {[%emt 0:00:10]} Kf6 {[%emt 0:00:22]} 60. Kg2 {[%emt 0:00:06]} Ke5 {[%emt 0:00:13]} 61. h4 {[%emt 0:00:21]} h5 {[%emt 0:00:10]} (61... Kd6 $11) 62. Bd1 $14 {[%emt 0:00:12]} Ke4 {[%emt 0:00:10]} 63. Bb3 {[%emt 0:00:06] Bf7 is the strong threat.} f4 $2 {[%emt 0:00:09][%mdl 8192] This costs Black the game.} ({Black should try} 63... Ke5 $1 $14) 64. Bc2+ $18 {[%emt 0:00:09]} Ke3 $2 {[%emt 0:00:04]} (64... Ke5 65. Bxg6 fxg3) 65. Bxg6 {[%emt 0:00:09]} f3+ {[%emt 0:00:05]} 66. Kf1 {[%emt 0:00:01]} Bc7 {[%emt 0:00:05]} 67. Bxh5 {[%emt 0:00:06]} Bxg3 {[%emt 0:00:23]} 68. a5 {[%emt 0:00:01] Weighted Error Value: White=0.35/Black=0.34} 1-0